[Event "Bremer Silvester Open 2019"]
[Site "Bremen"]
[Date "2019.12.27"]
[Round "1.1"]
[White "Grishchenko, Sergey"]
[Black "Block, Timo"]
[Result "1-0"]
[ECO "D10"]
[WhiteElo "2404"]
[BlackElo "1827"]
[Annotator "NA"]
[PlyCount "93"]
[EventDate "2019.12.27"]
[EventType "swiss"]
[EventCountry "GER"]
[SourceTitle "playchess.com"]
[Source "ChessBase"]
[SourceQuality "1"]
[TimeControl "40/5400+30:1800+30"]

1. d4 {[%emt 0:00:00]} d5 {[%emt 0:00:00]} 2. c4 {[%emt 0:00:00]} c6 {[%emt 0:00:17]} 3. Nc3 {[%emt 0:00:00]} Nf6 {[%emt 0:01:00]} 4. cxd5 {[%emt 0:02:09]} cxd5 {[%emt 0:01:02]} 5. Bf4 {[%emt 0:00:06]} Nc6 {[%emt 0:03:23]} 6. e3 {[%emt 0:00:42]} Bf5 {[%emt 0:03:19]} 7. Qb3 {[%emt 0:01:06]} Qd7 {[%emt 0:02:19] D10: Slav Defence: 3 cxd5 (without early Nf3) and 3 Nc3} (7... Na5 8. Qa4+ Bd7 9. Qc2 e6 10. Nf3 Be7 11. Bd3 Nc6 12. Qe2 Nh5 13. Be5 f6 14. Bg3 f5 15. Nd2 g6 {½-½ (29) Aronian,L (2756)-Yu,Y (2736) Riga 2019}) 8. Nf3 {[%emt 0:07:58]} a6 {[%emt 0:11:47]} 9. Ne5 {[%emt 0:19:58]} Nxe5 {[%emt 0:05:24]} 10. Bxe5 {[%emt 0:13:23]} e6 {[%emt 0:15:38]} 11. Be2 {[%emt 0:01:08]} Rc8 {[%emt 0:03:09]} 12. O-O {[%emt 0:11:32]} Be7 {[%emt 0:02:58]} 13. Rac1 $146 {[%emt 0:09:52]} ({Predecessor:} 13. f3 O-O 14. a4 Rc6 15. a5 {½-½ (24) Kralovsky,M (2031)-Ryslink,D Prague 2005}) 13... O-O {[%emt 0:03:53]} 14. f3 {[%emt 0:01:33]} Rc6 {[%emt 0:04:50]} 15. Na4 {[%emt 0:01:29]} b5 {[%emt 0:08:58]} 16. Nc5 {[%emt 0:11:42]} Bxc5 {[%emt 0:04:21]} (16... Qc8 $14) 17. dxc5 {[%emt 0:01:40]} Qe7 {[%emt 0:01:52]} (17... Rfc8 $16) 18. Bd6 {[%emt 0:01:58]} Rxd6 {[%emt 0:01:47]} 19. cxd6 {[%emt 0:00:13]} Qxd6 {[%emt 0:00:08]} 20. Qc3 {[%emt 0:00:31]} h6 {[%emt 0:04:34]} 21. Rfd1 {[%emt 0:01:55]} Qb6 $18 {[%emt 0:02:31]} 22. Qc5 {[%emt 0:01:37]} Qb7 {[%emt 0:04:10]} 23. Qc7 {[%emt 0:02:12]} Qa8 {[%emt 0:03:25]} 24. b4 {[%emt 0:02:40]} Ne8 {[%emt 0:06:34]} 25. Qb6 {[%emt 0:01:11]} Nf6 {[%emt 0:01:23]} 26. Rc7 {[%emt 0:03:43]} d4 {[%emt 0:02:00]} 27. Qxd4 {[%emt 0:00:55]} Nd5 {[%emt 0:00:36]} 28. Rc5 {[%emt 0:01:17]} Bg6 {[%emt 0:00:36]} 29. e4 {[%emt 0:00:23]} Nf4 {[%emt 0:00:41]} 30. Bf1 {[%emt 0:00:06]} e5 {[%emt 0:01:15]} 31. Qxe5 {[%emt 0:00:31]} Ne6 {[%emt 0:00:06]} 32. Rc2 {[%emt 0:00:17]} Qa7+ {[%emt 0:00:37]} 33. Kh1 {[%emt 0:00:07]} Re8 {[%emt 0:00:31]} 34. Rdc1 {[%emt 0:01:29]} f6 {[%emt 0:00:41]} 35. Qg3 {[%emt 0:00:56]} Bf7 {[%emt 0:00:32]} 36. Qf2 {[%emt 0:00:06]} Qe7 {[%emt 0:00:41]} 37. a3 {[%emt 0:00:17]} Rd8 {[%emt 0:00:50]} 38. Rd2 {[%emt 0:00:10]} Re8 {[%emt 0:00:31]} 39. Qb6 {[%emt 0:00:11]} Ng5 {[%emt 0:00:35]} 40. Qxa6 {[%emt 0:00:31]} Qe5 {[%emt 0:00:27]} 41. Qd6 {[%emt 0:30:23]} Qxd6 {[%emt 0:02:31]} 42. Rxd6 {[%emt 0:00:00]} Ra8 {[%emt 0:00:17]} 43. Rc3 {[%emt 0:00:00]} Rb8 {[%emt 0:00:22]} 44. Rdc6 {[%emt 0:00:00]} Kh7 {[%emt 0:01:12]} 45. Rc8 {[%emt 0:00:00]} Rb6 {[%emt 0:00:16]} 46. R3c6 {[%emt 0:00:00]} Rb7 {[%emt 0:00:10]} 47. R8c7 {[%emt 0:00:00]} 1-0

[Event "Bremer Silvester Open 2019"]
[Site "Bremen"]
[Date "2019.12.27"]
[Round "1.3"]
[White "Wachinger, Nikolas"]
[Black "Klemm, Robert"]
[Result "1-0"]
[ECO "B24"]
[WhiteElo "2234"]
[BlackElo "1802"]
[Annotator "NA"]
[PlyCount "57"]
[EventDate "2019.12.27"]
[EventType "swiss"]
[EventCountry "GER"]
[SourceTitle "playchess.com"]
[Source "ChessBase"]
[SourceQuality "1"]
[TimeControl "40/5400+30:1800+30"]

1. e4 {[%emt 0:00:00]} e6 {[%emt 0:00:00]} 2. d3 {[%emt 0:00:17]} c5 {[%emt 0:01:18]} 3. g3 {[%emt 0:02:20]} Nc6 {[%emt 0:00:15]} 4. Bg2 {[%emt 0:00:31]} d5 {[%emt 0:00:51]} 5. Nc3 {[%emt 0:03:13]} Nf6 {[%emt 0:01:43]} 6. Bg5 {[%emt 0:05:30]} ({Better is} 6. exd5 $11 exd5 7. Nge2) 6... d4 {[%emt 0:03:56]} 7. Nce2 {[%emt 0:01:46]} Be7 {[%emt 0:03:36] B24: Closed Sicilian: 3 g3 sidelines} 8. h3 {[%emt 0:06:18]} e5 {[%emt 0:02:55]} 9. f4 {[%emt 0:02:44]} h6 {[%emt 0:05:41]} 10. Bxf6 {[%emt 0:14:14]} Bxf6 {[%emt 0:00:09]} 11. Nf3 {[%emt 0:00:09]} Bd7 {[%emt 0:09:16]} 12. O-O {[%emt 0:02:55]} g5 $146 {[%emt 0:04:52]} ({Predecessor:} 12... O-O 13. f5 Rc8 14. h4 Nb4 15. a3 {1-0 (44) Jamroz,G (2045)-Gasik,A Zakopane 2001}) 13. c3 {[%emt 0:07:33]} gxf4 {[%emt 0:12:20]} 14. gxf4 {[%emt 0:02:39]} Qe7 {[%emt 0:10:05]} 15. cxd4 {[%emt 0:06:16]} Nxd4 {[%emt 0:03:01]} 16. Nexd4 {[%emt 0:00:42]} cxd4 {[%emt 0:06:34]} 17. Qd2 {[%emt 0:18:01]} Rg8 {[%emt 0:09:15]} 18. Kh1 {[%emt 0:10:07]} Rg3 {[%emt 0:06:45]} 19. Kh2 $11 {[%emt 0:00:21]} ({Don't play} 19. Nxe5 Bxe5 20. fxe5 Bxh3 $17) 19... Rg7 {[%emt 0:06:46]} 20. Rac1 {[%emt 0:07:03]} Bb5 {[%emt 0:02:11]} 21. b4 {[%emt 0:01:16]} h5 {[%emt 0:02:43]} 22. Rc5 {[%emt 0:00:31]} Ba6 {[%emt 0:01:20]} 23. fxe5 {[%emt 0:00:58]} Bg5 {[%emt 0:00:21]} 24. Nxg5 {[%emt 0:00:07]} Rxg5 {[%emt 0:00:22]} 25. e6 {[%emt 0:00:38]} f6 {[%emt 0:01:00]} 26. Rff5 {[%emt 0:02:57]} Qd6+ {[%emt 0:02:04]} 27. e5 {[%emt 0:01:22]} Qxc5 {[%emt 0:01:42]} 28. Rxg5 {[%emt 0:00:07]} Qe7 {[%emt 0:00:20]} 29. Rg8+ {[%emt 0:00:07]} 1-0

[Event "Bremer Silvester Open 2019"]
[Site "Bremen"]
[Date "2019.12.27"]
[Round "1.4"]
[White "Koerber, Uwe"]
[Black "Hoerstmann, Martin"]
[Result "0-1"]
[ECO "B23"]
[WhiteElo "1762"]
[BlackElo "2208"]
[Annotator "NA"]
[PlyCount "70"]
[EventDate "2019.12.27"]
[EventType "swiss"]
[EventCountry "GER"]
[SourceTitle "playchess.com"]
[Source "ChessBase"]
[SourceQuality "1"]
[TimeControl "40/5400+30:1800+30"]

{[%evp 17,70,-56,32767,32767,-66,-163,-216,-183,-203,-274,-259,-318,-357,-383,-302,32767,-245,-262,-233,-233,-206,-231,-214,-266,-302,-352,32767,32767,32767,32767,32767,32767,32767,32767,32767,32767,32767,32767,32767,32767,32767,32767,32767,-601,-622,-591,-612,-624,-624,-617,-645,-676,32767,-657,-652]} 1. e4 {[%emt 0:00:00]} g6 {[%emt 0:00:00]} 2. Nc3 {[%emt 0:00:18]} Bg7 {[%emt 0:00:00]} 3. f4 {[%emt 0:00:25]} c5 {[%emt 0:00:00]} 4. Nf3 {[%emt 0:00:42]} Nc6 {[%emt 0:00:11]} 5. Bc4 {[%emt 0:00:58]} e6 {[%emt 0:00:23]} 6. O-O {[%emt 0:00:36]} Nge7 {[%emt 0:00:09]} 7. Qe1 {[%emt 0:00:47]} O-O {[%emt 0:03:17]} 8. d3 {[%emt 0:02:20]} d5 {[%emt 0:00:52]} 9. Bb3 $1 {[%emt 0:00:40]} Na5 {[%emt 0:00:53]} 10. Kh1 {[%emt 0:05:17] B23: Closed Sicilian: Lines without g3} (10. Bd2 b6 11. e5 a6 12. Nd1 Nec6 13. Bxa5 Nxa5 14. c3 d4 15. cxd4 Nxb3 16. axb3 Bb7 17. dxc5 Qxd3 18. cxb6 Qxb3 {0-1 (40) Aldama Degurnay,D (2434)-Li,C (2670) Las Vegas 2012}) 10... b6 $146 {[%emt 0:04:58]} ({Predecessor:} 10... a6 11. Bd2 c4 12. Ba4 b5 13. Nxd5 Nac6 14. Nxe7+ Qxe7 15. Bxb5 axb5 16. dxc4 bxc4 17. e5 Ba6 {0-1 (46) Loo,P (1505)-Lee,C (1756) Penang 2019}) 11. a3 {[%emt 0:12:39]} (11. Bd2 $1 $15) 11... Nxb3 {[%emt 0:01:16]} 12. cxb3 {[%emt 0:00:08]} Ba6 {[%emt 0:00:31]} 13. Ne5 {[%emt 0:05:41]} f6 {[%emt 0:03:59]} 14. Ng4 {[%emt 0:04:35]} Bxd3 {[%emt 0:01:01]} 15. Rf3 {[%emt 0:00:22]} dxe4 {[%emt 0:00:51]} 16. Rh3 {[%emt 0:04:58]} Nf5 {[%emt 0:07:24]} 17. Nf2 {[%emt 0:02:24]} Qd7 {[%emt 0:06:02]} 18. Ncxe4 {[%emt 0:04:16]} Ba6 {[%emt 0:01:47]} 19. Be3 {[%emt 0:11:01]} Rad8 {[%emt 0:01:08]} 20. Rd1 {[%emt 0:02:42]} Qc6 {[%emt 0:04:14]} 21. Nd2 {[%emt 0:05:21]} Bb7 {[%emt 0:09:56]} 22. Nf3 {[%emt 0:01:31]} Rxd1 {[%emt 0:00:51]} 23. Nxd1 {[%emt 0:00:29]} Qe4 {[%emt 0:02:45]} 24. Bd2 {[%emt 0:05:34]} Rd8 {[%emt 0:00:45]} 25. Nc3 {[%emt 0:03:06]} Qxe1+ {[%emt 0:01:07]} 26. Bxe1 {[%emt 0:00:16]} Nd4 {[%emt 0:05:21]} 27. Kg1 {[%emt 0:06:07]} Bxf3 {[%emt 0:01:00]} 28. gxf3 {[%emt 0:01:59]} Nxb3 {[%emt 0:00:09]} 29. Ne4 {[%emt 0:04:44]} f5 {[%emt 0:01:45]} 30. Ng5 {[%emt 0:01:16]} h6 {[%emt 0:00:07]} 31. Nxe6 {[%emt 0:03:16]} Re8 {[%emt 0:00:05]} 32. Nxg7 {[%emt 0:00:15]} Rxe1+ {[%emt 0:00:07]} 33. Kf2 {[%emt 0:00:05]} Re7 {[%emt 0:00:05]} ({Inferior is} 33... Kxg7 34. Kxe1 Nd4 35. Kf2 $11) 34. Nxf5 {[%emt 0:00:19]} gxf5 {[%emt 0:00:05]} 35. Rxh6 {[%emt 0:00:17]} Nd4 $19 {[%emt 0:44:26]} 0-1

[Event "Bremer Silvester Open 2019"]
[Site "Bremen"]
[Date "2019.12.27"]
[Round "1.5"]
[White "Brinkmann, Fabian"]
[Black "Wohlrabe, Joerg"]
[Result "1-0"]
[ECO "B00"]
[WhiteElo "2148"]
[BlackElo "1751"]
[Annotator "NA"]
[PlyCount "57"]
[EventDate "2019.12.27"]
[EventType "swiss"]
[EventCountry "GER"]
[SourceTitle "playchess.com"]
[Source "ChessBase"]
[SourceQuality "1"]
[TimeControl "40/5400+30:1800+30"]

1. e4 {[%emt 0:00:00]} e6 {[%emt 0:00:00]} 2. d4 {[%emt 0:00:02]} b6 {[%emt 0:00:00]} 3. Bd3 {[%emt 0:00:17]} Bb7 {[%emt 0:00:00]} 4. Qe2 {[%emt 0:01:06]} Be7 {[%emt 0:00:56]} (4... Nf6 5. Nf3 d6 6. O-O Nbd7 7. Re1 e5 8. Nc3 Be7 9. Bg5 h6 10. Bh4 Nh5 11. Bxe7 Qxe7 12. Ba6 Nf4 13. Qc4 Bxa6 14. Qxa6 {½-½ (23) Solak,D (2629)-Cicak,S (2566) Stockholm 2012}) 5. Nf3 {[%emt 0:01:04]} d6 {[%emt 0:00:27]} 6. O-O {[%emt 0:00:41] B00: Queen's Fianchetto Defence, Nimzowitsch Defence} Nd7 {[%emt 0:00:13]} 7. c4 {[%emt 0:00:52]} c5 {[%emt 0:02:01]} 8. Nc3 {[%emt 0:01:30]} cxd4 {[%emt 0:01:00]} 9. Nxd4 {[%emt 0:00:09]} a6 {[%emt 0:02:50]} 10. Bd2 $146 {[%emt 0:05:42]} ({Predecessor:} 10. f4 Bf6 11. Be3 Ne7 12. Rad1 {1-0 (28) Shepley,J (2029)-Kalerwa,E (1783) London 2012}) 10... Rc8 {[%emt 0:04:17]} 11. f4 {[%emt 0:04:00]} Bf6 {[%emt 0:04:28]} 12. Nf3 {[%emt 0:00:37]} Ne7 {[%emt 0:04:53]} 13. Rad1 {[%emt 0:04:46]} Qc7 {[%emt 0:01:41]} 14. Kh1 {[%emt 0:02:42]} O-O {[%emt 0:15:02]} 15. Rc1 {[%emt 0:12:10]} Qb8 {[%emt 0:02:36]} 16. Bb1 {[%emt 0:08:56]} Rfd8 {[%emt 0:08:55]} 17. Be1 {[%emt 0:09:44]} Ng6 {[%emt 0:09:14]} 18. Bg3 {[%emt 0:01:44]} Qa8 {[%emt 0:02:19]} 19. h4 {[%emt 0:07:35]} Ngf8 {[%emt 0:02:36]} 20. e5 {[%emt 0:02:21]} Bxf3 {[%emt 0:00:15]} 21. Rxf3 {[%emt 0:00:10]} Be7 {[%emt 0:04:28]} 22. Rcf1 {[%emt 0:04:24]} Ng6 {[%emt 0:04:34]} 23. h5 {[%emt 0:01:07]} Ngf8 {[%emt 0:02:28]} 24. exd6 {[%emt 0:08:35]} Bxd6 {[%emt 0:00:19]} 25. f5 {[%emt 0:00:21]} Bxg3 {[%emt 0:00:30]} 26. Rxg3 {[%emt 0:00:26]} Qc6 $2 {[%emt 0:06:45] [#]} (26... Qb8 {is tougher.} 27. Qf2 exf5) 27. Qg4 $1 {[%emt 0:00:41]} g6 {[%emt 0:02:15]} 28. fxg6 {[%emt 0:00:17]} fxg6 {[%emt 0:00:31]} 29. hxg6 {[%emt 0:00:31]} 1-0

[Event "Bremer Silvester Open 2019"]
[Site "Bremen"]
[Date "2019.12.27"]
[Round "1.6"]
[White "Niemann, Leon"]
[Black "Pollmann, Sascha"]
[Result "1/2-1/2"]
[ECO "C01"]
[WhiteElo "1747"]
[BlackElo "2118"]
[Annotator "NA"]
[PlyCount "97"]
[EventDate "2019.12.27"]
[EventType "swiss"]
[EventCountry "GER"]
[SourceTitle "playchess.com"]
[Source "ChessBase"]
[SourceQuality "1"]
[TimeControl "40/5400+30:1800+30"]

1. e4 {[%emt 0:00:00]} e6 {[%emt 0:00:00]} 2. d4 {[%emt 0:00:00]} d5 {[%emt 0:00:00]} 3. Bd3 {[%emt 0:00:00]} c5 {[%emt 0:00:06]} 4. exd5 {[%emt 0:00:00]} exd5 {[%emt 0:00:09]} 5. dxc5 {[%emt 0:00:04]} Bxc5 {[%emt 0:01:38]} 6. c3 {[%emt 0:00:42] C01: French: Exchange Variation} (6. Nf3 Nf6 7. O-O O-O 8. Nc3 h6 9. h3 Re8 10. a3 a6 11. b4 Ba7 12. Bb2 Nc6 13. Re1 Be6 14. Na4 Nd7 15. Qd2 Rc8 16. Rad1 {½-½ (87) Zhu,J (2471)-Zvjaginsev,V (2644) Qingdao 2019}) 6... Nf6 {[%emt 0:00:48]} 7. Nf3 {[%emt 0:03:35]} O-O {[%emt 0:00:18]} 8. O-O {[%emt 0:00:24]} Nc6 {[%emt 0:01:25]} 9. h3 {[%emt 0:04:03]} Qd6 {[%emt 0:05:55]} 10. Kh1 {[%emt 0:08:25]} Re8 $146 {[%emt 0:03:15]} ({Predecessor:} 10... Ne4 11. Ng5 f5 12. Bxe4 fxe4 13. b4 Bb6 14. Nxe4 Qe5 15. Nc5 Nxb4 {0-1 (40) Marszk,K (1829)-Fainberg,B (2030) Polanica Zdroj 2019}) 11. Bg5 {[%emt 0:04:40]} Ne4 {[%emt 0:04:33]} 12. Bh4 {[%emt 0:04:30]} Qh6 {[%emt 0:03:29]} 13. Bc2 {[%emt 0:07:26]} Bg4 {[%emt 0:13:11]} 14. Bg3 $2 {[%emt 0:06:02]} (14. hxg4 $17 {is tougher.} Ne5 15. g3 Nxf2+ 16. Rxf2 Bxf2 17. g5) 14... Nxg3+ {[%emt 0:07:30]} 15. fxg3 {[%emt 0:00:10]} Rad8 {[%emt 0:03:25]} (15... Re3 $142 16. Nbd2 Ne5) 16. Kh2 $2 {[%emt 0:05:59]} (16. Nbd2 {nothing else works.}) 16... d4 {[%emt 0:02:33]} 17. Qd2 {[%emt 0:02:52]} Qxd2 {[%emt 0:11:25]} 18. Nbxd2 {[%emt 0:04:21]} dxc3 {[%emt 0:03:14]} 19. bxc3 {[%emt 0:01:56]} Be6 {[%emt 0:05:13]} 20. Ne4 {[%emt 0:03:35]} Bb6 {[%emt 0:03:55]} 21. Neg5 {[%emt 0:10:58]} h6 {[%emt 0:00:40]} 22. Nxe6 {[%emt 0:00:42]} Rxe6 {[%emt 0:00:12]} 23. Bb3 {[%emt 0:01:11]} Re7 {[%emt 0:02:57]} 24. Rae1 {[%emt 0:04:02]} Be3 {[%emt 0:02:53]} 25. Rd1 {[%emt 0:02:04]} (25. Nh4 $1 $14 Rde8 26. Rf3) 25... Red7 {[%emt 0:02:24]} 26. Rde1 {[%emt 0:07:35]} Bb6 $15 {[%emt 0:02:16]} 27. Ne5 {[%emt 0:00:26]} Nxe5 $15 {[%emt 0:01:46]} 28. Rxe5 {[%emt 0:00:14]} Kf8 {[%emt 0:02:24]} 29. Rfe1 {[%emt 0:02:42]} Bc7 {[%emt 0:02:16]} 30. R5e3 {[%emt 0:00:40]} Rd3 {[%emt 0:01:44]} 31. Bc4 {[%emt 0:02:35]} Rxe3 {[%emt 0:00:42]} 32. Rxe3 {[%emt 0:00:07]} f6 {[%emt 0:01:47]} 33. Rd3 {[%emt 0:03:56]} Rxd3 {[%emt 0:01:54]} 34. Bxd3 {[%emt 0:00:06]} g5 {[%emt 0:01:28]} 35. c4 {[%emt 0:02:17]} Bd6 {[%emt 0:02:01]} 36. Kg1 {[%emt 0:01:06]} Bxg3 {[%emt 0:00:25]} 37. c5 {[%emt 0:00:05]} Ke7 {[%emt 0:01:22]} 38. Be4 {[%emt 0:00:15]} b5 {[%emt 0:00:46]} 39. cxb6 {[%emt 0:00:18]} axb6 {[%emt 0:00:09]} 40. Kf1 {[%emt 0:00:19]} Kd6 {[%emt 0:00:29]} 41. Ke2 {[%emt 0:30:13]} Ke5 {[%emt 0:30:45]} 42. Kf3 {[%emt 0:00:59]} h5 {[%emt 0:02:40]} 43. Bg6 {[%emt 0:01:02]} h4 {[%emt 0:00:10]} 44. Bf7 {[%emt 0:00:25]} Kd4 {[%emt 0:04:51]} 45. Be6 {[%emt 0:00:42]} b5 {[%emt 0:00:37]} 46. Bd7 {[%emt 0:00:39]} b4 {[%emt 0:00:14]} 47. Be6 {[%emt 0:00:08]} Ke5 {[%emt 0:00:00]} 48. Bb3 {[%emt 0:00:00]} f5 {[%emt 0:00:00]} 49. Bc4 {[%emt 0:10:00]} 1/2-1/2

[Event "Bremer Silvester Open 2019"]
[Site "Bremen"]
[Date "2019.12.27"]
[Round "2.1"]
[White "Herlan, Klaus-Juergen"]
[Black "Grishchenko, Sergey"]
[Result "0-1"]
[ECO "D05"]
[WhiteElo "2008"]
[BlackElo "2404"]
[Annotator "NA"]
[PlyCount "96"]
[EventDate "2019.12.27"]
[EventType "swiss"]
[EventCountry "GER"]
[SourceTitle "playchess.com"]
[Source "ChessBase"]
[SourceQuality "1"]
[TimeControl "40/5400+30:1800+30"]

1. d4 {[%emt 0:00:00]} Nf6 {[%emt 0:00:00]} 2. Nf3 {[%emt 0:00:00]} c5 {[%emt 0:00:00]} 3. e3 {[%emt 0:00:00]} d5 {[%emt 0:04:57]} 4. Bd3 {[%emt 0:01:29]} Nc6 {[%emt 0:06:10]} 5. c3 {[%emt 0:01:48]} Qc7 {[%emt 0:03:08]} 6. Nbd2 {[%emt 0:07:14]} Bg4 {[%emt 0:06:02]} 7. Qa4 {[%emt 0:12:28]} Nd7 {[%emt 0:12:48]} 8. Be2 {[%emt 0:05:54]} cxd4 {[%emt 0:07:41]} 9. exd4 {[%emt 0:01:18]} e6 {[%emt 0:01:24]} 10. h3 {[%emt 0:03:53]} Bh5 {[%emt 0:01:26]} 11. Nf1 {[%emt 0:07:50]} Bd6 {[%emt 0:08:55]} 12. Be3 {[%emt 0:01:41]} Rb8 {[%emt 0:05:40]} 13. Qd1 {[%emt 0:05:50]} b5 {[%emt 0:10:33]} 14. Bd2 {[%emt 0:06:45]} b4 {[%emt 0:16:17]} 15. Ne3 {[%emt 0:02:56]} bxc3 {[%emt 0:00:09]} 16. Bxc3 {[%emt 0:00:41]} O-O {[%emt 0:02:32]} 17. O-O {[%emt 0:00:18]} Nf6 {[%emt 0:01:09]} 18. Nd2 {[%emt 0:03:06]} Bxe2 {[%emt 0:05:01]} 19. Qxe2 {[%emt 0:00:05]} Qb6 {[%emt 0:00:09]} 20. Ng4 {[%emt 0:04:09]} Nxg4 {[%emt 0:02:37]} 21. Qxg4 {[%emt 0:00:06]} Bb4 {[%emt 0:02:07]} 22. Nb3 {[%emt 0:01:09]} Bxc3 {[%emt 0:01:00]} 23. bxc3 {[%emt 0:00:06]} Na5 {[%emt 0:00:11]} 24. Nc5 {[%emt 0:00:30]} Qc6 {[%emt 0:00:10]} 25. Rab1 {[%emt 0:02:04]} Nb7 {[%emt 0:01:07]} 26. Qg3 {[%emt 0:02:21]} Nd6 {[%emt 0:00:30]} 27. Rb3 {[%emt 0:03:17]} Rb6 {[%emt 0:00:05]} 28. Re1 {[%emt 0:12:40]} h6 {[%emt 0:00:43]} 29. Qd3 {[%emt 0:05:59]} Rc8 {[%emt 0:00:26]} 30. Reb1 {[%emt 0:00:50]} Nc4 {[%emt 0:00:47]} 31. Rb4 {[%emt 0:01:02]} Rcb8 {[%emt 0:00:23]} 32. g3 {[%emt 0:03:52]} e5 {[%emt 0:00:45]} 33. Rxb6 {[%emt 0:00:31]} axb6 {[%emt 0:00:20]} 34. Nb3 {[%emt 0:00:17]} e4 {[%emt 0:00:12]} 35. Qe2 {[%emt 0:01:05]} Rc8 {[%emt 0:00:48]} 36. Rc1 {[%emt 0:00:21]} Nd6 {[%emt 0:00:11]} 37. Nd2 {[%emt 0:00:41]} Qa4 {[%emt 0:00:40]} 38. Nf1 {[%emt 0:00:30]} Qa3 {[%emt 0:00:45]} 39. Rb1 {[%emt 0:01:19]} Qxc3 {[%emt 0:00:58]} 40. Rxb6 {[%emt 0:02:57]} Nc4 {[%emt 0:00:17]} 41. Rb7 {[%emt 0:06:11]} Qxd4 {[%emt 0:01:10]} 42. Qg4 {[%emt 0:00:49]} Rf8 {[%emt 0:01:12]} 43. Rb1 {[%emt 0:06:28]} Ne5 {[%emt 0:06:59]} 44. Qe2 {[%emt 0:03:17]} Rd8 {[%emt 0:02:44]} 45. Kg2 {[%emt 0:03:07]} Qc3 {[%emt 0:08:03]} 46. Rb3 {[%emt 0:02:02]} Qa1 {[%emt 0:02:17]} 47. Qc2 {[%emt 0:02:12]} Nf3 {[%emt 0:03:48]} 48. Rb1 {[%emt 0:01:13]} Ne1+ {[%emt 0:00:14]} 0-1

[Event "Bremer Silvester Open 2019"]
[Site "Bremen"]
[Date "2019.12.27"]
[Round "2.2"]
[White "Reuker, Jari"]
[Black "Pienski, Olaf"]
[Result "1-0"]
[ECO "E61"]
[WhiteElo "2383"]
[BlackElo "2001"]
[Annotator "NA"]
[PlyCount "85"]
[EventDate "2019.12.27"]
[EventType "swiss"]
[EventCountry "GER"]
[SourceTitle "playchess.com"]
[Source "ChessBase"]
[SourceQuality "1"]
[TimeControl "40/5400+30:1800+30"]

1. c4 {[%emt 0:00:00]} e5 {[%emt 0:00:07]} 2. Nc3 {[%emt 0:00:00]} d6 {[%emt 0:00:36]} 3. g3 {[%emt 0:00:08]} Nf6 {[%emt 0:00:42]} 4. Bg2 {[%emt 0:00:07]} g6 {[%emt 0:00:49]} 5. e3 {[%emt 0:00:57]} Bg7 {[%emt 0:01:28]} 6. Nge2 {[%emt 0:00:08]} O-O {[%emt 0:00:55]} 7. O-O {[%emt 0:00:11]} c6 {[%emt 0:03:03]} 8. d4 {[%emt 0:01:48]} Nbd7 {[%emt 0:02:25]} 9. b3 {[%emt 0:01:51]} Re8 {[%emt 0:00:58]} 10. Ba3 {[%emt 0:03:39]} Bf8 {[%emt 0:02:33]} 11. Qd2 {[%emt 0:01:11]} Qa5 {[%emt 0:09:52]} 12. Bb2 {[%emt 0:01:29]} exd4 {[%emt 0:06:28]} 13. Qxd4 {[%emt 0:06:09]} Qb6 {[%emt 0:11:06]} 14. Rad1 {[%emt 0:05:48]} Qxd4 {[%emt 0:02:57]} 15. Rxd4 {[%emt 0:00:57]} Nc5 {[%emt 0:04:00]} 16. h3 {[%emt 0:06:46]} h5 {[%emt 0:01:51]} 17. Kh2 {[%emt 0:01:17]} Bf5 {[%emt 0:03:41]} 18. Ba3 {[%emt 0:05:58]} Rad8 {[%emt 0:16:46]} 19. Rfd1 {[%emt 0:01:35]} Be7 {[%emt 0:04:13]} 20. b4 {[%emt 0:06:48]} Ne6 {[%emt 0:10:00]} 21. R4d2 {[%emt 0:00:09]} Ng5 {[%emt 0:00:52]} 22. Nd4 {[%emt 0:04:55]} Bc8 {[%emt 0:02:30]} 23. f4 {[%emt 0:06:17]} Ne6 {[%emt 0:00:17]} 24. Nb3 {[%emt 0:04:04]} Nc7 {[%emt 0:01:02]} 25. b5 {[%emt 0:00:56]} cxb5 {[%emt 0:01:04]} 26. cxb5 {[%emt 0:00:41]} d5 {[%emt 0:04:39]} 27. Bxe7 {[%emt 0:00:22]} Rxe7 {[%emt 0:00:20]} 28. e4 {[%emt 0:00:21]} Bd7 {[%emt 0:04:24]} 29. e5 {[%emt 0:00:49]} Nh7 {[%emt 0:00:57]} 30. Nxd5 {[%emt 0:01:45]} Nxd5 {[%emt 0:00:09]} 31. Rxd5 {[%emt 0:00:47]} b6 {[%emt 0:00:56]} 32. Rd6 {[%emt 0:01:51]} Nf8 {[%emt 0:00:24]} 33. Bc6 {[%emt 0:00:27]} Bxc6 {[%emt 0:01:30]} 34. Rxd8 {[%emt 0:00:50]} Bxb5 {[%emt 0:00:21]} 35. Nd4 {[%emt 0:03:00]} Ba6 {[%emt 0:02:24]} 36. Nc6 {[%emt 0:00:11]} Rc7 {[%emt 0:00:26]} 37. Nb4 {[%emt 0:00:05]} Bb7 {[%emt 0:00:25]} 38. Rb8 {[%emt 0:00:28]} Kg7 {[%emt 0:01:02]} 39. Rdd8 {[%emt 0:00:22]} Nh7 {[%emt 0:00:30]} 40. g4 {[%emt 0:01:13]} hxg4 {[%emt 0:00:37]} 41. hxg4 {[%emt 0:30:04]} f6 {[%emt 0:00:54]} 42. e6 {[%emt 0:00:00]} a5 {[%emt 0:00:34]} 43. Rd7+ {[%emt 0:00:00]} 1-0

[Event "Bremer Silvester Open 2019"]
[Site "Bremen"]
[Date "2019.12.27"]
[Round "2.3"]
[White "Erofeev, Anastasia"]
[Black "Wachinger, Nikolas"]
[Result "0-1"]
[ECO "A60"]
[WhiteElo "1988"]
[BlackElo "2234"]
[Annotator "NA"]
[PlyCount "52"]
[EventDate "2019.12.27"]
[EventType "swiss"]
[EventCountry "GER"]
[SourceTitle "playchess.com"]
[Source "ChessBase"]
[SourceQuality "1"]
[TimeControl "40/5400+30:1800+30"]

1. d4 {[%emt 0:00:00]} Nf6 {[%emt 0:00:00]} 2. c4 {[%emt 0:00:00]} g6 {[%emt 0:00:00]} 3. g3 {[%emt 0:00:05]} Bg7 {[%emt 0:00:00]} 4. Bg2 {[%emt 0:00:10]} c5 {[%emt 0:00:47]} 5. d5 {[%emt 0:00:39]} e6 {[%emt 0:00:51]} 6. Nc3 {[%emt 0:02:07]} exd5 {[%emt 0:01:08]} 7. cxd5 {[%emt 0:00:31]} d6 {[%emt 0:00:08]} 8. e4 {[%emt 0:02:47]} O-O {[%emt 0:01:13]} 9. Nge2 {[%emt 0:02:52]} Re8 {[%emt 0:03:36]} 10. O-O {[%emt 0:01:13]} b5 {[%emt 0:06:08]} 11. Nxb5 {[%emt 0:10:16]} Nxe4 {[%emt 0:00:15]} 12. Nec3 {[%emt 0:02:02]} Nxc3 {[%emt 0:06:31]} 13. Nxc3 {[%emt 0:01:15]} Ba6 {[%emt 0:00:50]} 14. Re1 {[%emt 0:00:13]} Rxe1+ {[%emt 0:00:09]} 15. Qxe1 {[%emt 0:00:11]} Nd7 {[%emt 0:00:09]} 16. Bf4 {[%emt 0:06:07]} Ne5 {[%emt 0:02:06]} 17. Qd2 {[%emt 0:09:08]} Rb8 {[%emt 0:05:33]} 18. Rb1 {[%emt 0:07:58]} Qa5 {[%emt 0:03:59]} 19. Bxe5 {[%emt 0:13:03]} Bxe5 {[%emt 0:00:10]} 20. Be4 {[%emt 0:00:16]} Kg7 {[%emt 0:07:11]} 21. Kg2 {[%emt 0:10:09]} Qb4 {[%emt 0:10:03]} 22. a3 {[%emt 0:07:27]} Qc4 {[%emt 0:08:53]} 23. Rc1 {[%emt 0:16:29]} Bxc3 {[%emt 0:06:31]} 24. Qxc3+ {[%emt 0:00:08]} Qxc3 {[%emt 0:00:06]} 25. bxc3 {[%emt 0:00:55]} Rb3 {[%emt 0:00:05]} 26. Rb1 {[%emt 0:00:56]} Rxa3 {[%emt 0:04:18]} 0-1